{"text_format":"1","workbook":"xlsx","n_sheets":2,"sheets":["vypoved","help"],"not_rendered":{"charts":0,"images":3,"macros":1,"external_links":0,"defined_names":2,"comments":1,"pivot_tables":0},"unopened":[],"bounds":{"document_bytes":16777216,"sheet_cells":100000,"rows_first":2000,"rows_last":500,"rows_between":2000,"halvings":0,"cell_chars":16384,"cell_head_chars":4096},"cells_cut":0,"cells_raw":0,"read":"whole","date_system":"1900"}

{"sheet":"vypoved","index":0,"n_rows":119,"n_cols":25,"rows_kept":119,"cut":false,"hidden":false,"merged":[[61,3,61,13],[29,5,29,13],[22,3,22,15],[40,12,40,13],[41,12,41,13],[42,8,42,11],[55,9,55,12],[30,5,30,10],[31,5,31,10],[34,5,34,10],[35,5,35,10],[39,10,39,11],[47,4,47,5],[36,5,36,10],[54,9,54,12]]}
[]
[]
[]
[]
[null,null,null,"VÝPOVĚĎ POJISTNÉ SMLOUVY"]
[]
[1]
[1]
[]
[]
[]
[]
[]
[]
[]
[]
[null,null,null,"OBČANSKÝ ZÁKONÍK",null,null,{"$f":"help!E1","v":""}]
[null,null,null,"§ 2805"]
[null,null,null,"Pojistitel nebo pojistník může pojištění vypovědět"]
[null,null,null,"a) s osmidenní výpovědní dobou do dvou měsíců ode dne uzavření smlouvy"]
[null,null,null,"b) s měsíční výpovědní dobou do tří měsíců ode dne oznámení vzniku pojistné události; vypoví-li však pojistitel životní pojištění, nepřihlíží se k tomu."]
[null,null,null,"§ 2807"]
[null,null,null,"Je-li pojištění ujednáno s běžným pojistným, zaniká pojištění na základě výpovědi pojistitele nebo pojistníka ke konci pojistného období; je-li však výpověď doručena druhé straně později než šest týdnů přede dnem, ve kterém uplyne pojistné období, zaniká pojištění ke konci následujícího pojistného období. Vypoví-li pojistitel životní pojištění, nepřihlíží se k výpovědi."]
[]
[]
[]
[null,null,null,"Výpověď pojistné smlouvy"]
[]
[null,null,null,"Pojistitel"]
[null,null,null,"Název:"]
[null,null,null,"Adresa:",null,{"$f":"IF(F30=\"\",\"\",VLOOKUP(F30,S:Y,7,FALSE))","v":""}]
[null,null,null,"IČ:",null,{"$f":"IF(F30=\"\",\"\",VLOOKUP(F30,S:Y,2,FALSE))","v":""}]
[]
[null,null,null,"Pojistník"]
[null,null,null,"Jméno, příjmení:"]
[null,null,null,"Rodné číslo:"]
[null,null,null,"Kontakt (tel., mail):"]
[]
[null,null,null,"Věc: Výpověď pojistné smlouvy"]
[null,null,null,"Tímto vypovídám ke konci pojistného období pojistnou smlouvu číslo"]
[null,null,null,"V souladu s § 2805, písm. a) občanského zákoníku vypovídám tímto pojistnou smlouvu číslo"]
[null,null,null,"V souladu s § 2805, písm. b) občanského zákoníku vypovídám tímto pojistnou smlouvu číslo"]
[null,null,null,"Případné odkupné mi prosím zašlete na účet číslo"]
[null,null,null,"Současně žádám o zaslání potvrzení o délce bezeškodního průběhu pojištění."]
[]
[]
[]
[null,null,null,"Dne"]
[null,null,null,"                                                        "]
[]
[null,null,null,"S pozdravem"]
[]
[]
[]
[null,null,null,null,null,null,null,null,null,{"$f":"IF(F35=\"\",\"\",F35)","v":""}]
[null,null,null,null,null,null,null,null,null,"Jméno a příjmení, podpis pojistníka"]
[]
[]
[]
[]
[null,null,null,"Poznámka"]
[null,null,null,"Dle občanského zákoníku je tato forma výpovědi pojistné smlouvy naprosto dostačující. Pojišťovna není oprávněna podmiňovat ukončení pojistné smlouvy sepsáním výpovědi na vlastním formuláři."]
[]
[null,null,null,null,null,null,null,null,null,null,null,null,null,null,null,null,null,null,"www.cnb.cz"]
[null,null,null,null,null,null,null,null,null,null,null,null,null,null,null,null,null,null,"Dohled a regulace / seznamy a evidence / seznam regulovanych subjektu / zakladni seznamy / provest / Pojišťovny a pobočky zahraničních pojišťoven / Download sestavy subjektů ve formátu Excel"]
[]
[null,null,null,null,null,null,null,null,null,null,null,null,null,null,null,null,null,null,"Název instituce nebo označení osoby","IČO","Ulice","Město, obec","PSČ","Země"]
[null,null,null,null,null,null,null,null,null,null,null,null,null,null,null,null,null,null,"ACE European Group Ltd, organizační složka","27893723","Pobřežní 620/3","Praha","18600","CZ",{"$f":"U68&\", \"&W68 & \" \" &V68","v":"Pobřežní 620/3, 18600 Praha"}]
[null,null,null,null,null,null,null,null,null,null,null,null,null,null,null,null,null,null,"AEGON Hungary Closed Company Ltd., organizační složka","29011019","Na Pankráci 322/26","Praha","14000","CZ",{"$f":"U69&\", \"&W69 & \" \" &V69","v":"Na Pankráci 322/26, 14000 Praha"}]
[null,null,null,null,null,null,null,null,null,null,null,null,null,null,null,null,null,null,"AEGON Pojišťovna, a.s.","27182461","Na Pankráci 322/26","Praha","14000","CZ","Na Pankráci 322/26, 14000 Praha"]
[null,null,null,null,null,null,null,null,null,null,null,null,null,null,null,null,null,null,"AGA International SA - odštěpný závod zahraniční právnické osoby","27633900","Jankovcova 1596/14b","Praha","17000","CZ","Jankovcova 1596/14b, 17000 Praha"]
[null,null,null,null,null,null,null,null,null,null,null,null,null,null,null,null,null,null,"AIG Europe Limited, organizační složka pro Českou republiku","24232777","V celnici 1031/4","Praha","11000","CZ","V celnici 1031/4, 11000 Praha"]
[null,null,null,null,null,null,null,null,null,null,null,null,null,null,null,null,null,null,"Allianz pojišťovna, a.s.","47115971","Ke Štvanici 656/3","Praha","18600","CZ","Ke Štvanici 656/3, 18600 Praha"]
[null,null,null,null,null,null,null,null,null,null,null,null,null,null,null,null,null,null,"Atradius Credit Insurance N.V., organizační složka","27123979","Karolinská 661/4","Praha","18600","CZ","Karolinská 661/4, 18600 Praha"]
[null,null,null,null,null,null,null,null,null,null,null,null,null,null,null,null,null,null,"AXA pojišťovna a.s.","28195604","Lazarská 13/8","Praha","12000","CZ","Lazarská 13/8, 12000 Praha"]
[null,null,null,null,null,null,null,null,null,null,null,null,null,null,null,null,null,null,"AXA životní pojišťovna a.s.","61859524","Lazarská 13/8","Praha","12000","CZ","Lazarská 13/8, 12000 Praha"]
[null,null,null,null,null,null,null,null,null,null,null,null,null,null,null,null,null,null,"Basler Lebensversicherungs-Aktiengesellschaft, pobočka pro Českou republiku","27607488","Paříkova 910/11a","Praha","19000","CZ","Paříkova 910/11a, 19000 Praha"]
[null,null,null,null,null,null,null,null,null,null,null,null,null,null,null,null,null,null,"Basler Sachversicherungs - Aktiengesellschaft, pobočka pro Českou republiku","28995767","Paříkova 910/11a","Praha","19000","CZ","Paříkova 910/11a, 19000 Praha"]
[null,null,null,null,null,null,null,null,null,null,null,null,null,null,null,null,null,null,"BNP Paribas Cardif Pojišťovna, a.s.","25080954","Plzeňská 3217/16","Praha","15000","CZ","Plzeňská 3217/16, 15000 Praha"]
[null,null,null,null,null,null,null,null,null,null,null,null,null,null,null,null,null,null,"Cestovní pojišťovna  ADRIA Way družstvo","25830660","Mírové náměstí 519/3d","Ostrava","70300","CZ","Mírové náměstí 519/3d, 70300 Ostrava"]
[null,null,null,null,null,null,null,null,null,null,null,null,null,null,null,null,null,null,"CG Car- Garantie Versicherungs-Aktiengesellschaft organizační složka pro Českou republiku","27401855","Zelený pruh 95/97","Praha","14000","CZ","Zelený pruh 95/97, 14000 Praha"]
[null,null,null,null,null,null,null,null,null,null,null,null,null,null,null,null,null,null,"COMPAGNIE FRANCAISE D´ ASSURANCE POUR LE COMMERCE EXTERIEUR organizační složka Česko","27941906","náměstí I. P. Pavlova 1789/5","Praha","12000","CZ","náměstí I. P. Pavlova 1789/5, 12000 Praha"]
[null,null,null,null,null,null,null,null,null,null,null,null,null,null,null,null,null,null,"Česká kancelář pojistitelů","70099618","Na Pankráci 1724/129","Praha","14000","CZ","Na Pankráci 1724/129, 14000 Praha"]
[null,null,null,null,null,null,null,null,null,null,null,null,null,null,null,null,null,null,"Česká podnikatelská pojišťovna, a.s., Vienna Insurance Group","63998530","Pobřežní 665/23","Praha","18600","CZ","Pobřežní 665/23, 18600 Praha"]
[null,null,null,null,null,null,null,null,null,null,null,null,null,null,null,null,null,null,"Česká pojišťovna a.s.","45272956","Spálená 75/16","Praha","11000","CZ","Spálená 75/16, 11000 Praha"]
[null,null,null,null,null,null,null,null,null,null,null,null,null,null,null,null,null,null,"Česká pojišťovna ZDRAVÍ a.s.","49240749","Na Pankráci 1720/123","Praha","14000","CZ","Na Pankráci 1720/123, 14000 Praha"]
[null,null,null,null,null,null,null,null,null,null,null,null,null,null,null,null,null,null,"ČSOB Pojišťovna, a. s., člen holdingu ČSOB","45534306","Masarykovo náměstí 1458","Pardubice","53002","CZ","Masarykovo náměstí 1458, 53002 Pardubice"]
[null,null,null,null,null,null,null,null,null,null,null,null,null,null,null,null,null,null,"D.A.S. Rechtsschutz AG, pobočka pro ČR","03450872","Vyskočilova 1481/4","Praha","14000","CZ","Vyskočilova 1481/4, 14000 Praha"]
[null,null,null,null,null,null,null,null,null,null,null,null,null,null,null,null,null,null,"ERGO pojišťovna, a.s.","61858714","Vyskočilova 1481/4","Praha","14000","CZ","Vyskočilova 1481/4, 14000 Praha"]
[null,null,null,null,null,null,null,null,null,null,null,null,null,null,null,null,null,null,"ERV Evropská pojišťovna, a. s.","49240196","Křižíkova 237/36a","Praha","18600","CZ","Křižíkova 237/36a, 18600 Praha"]
[null,null,null,null,null,null,null,null,null,null,null,null,null,null,null,null,null,null,"EULER HERMES SA, organizační složka","24181161","Molákova 576/11","Praha","18600","CZ","Molákova 576/11, 18600 Praha"]
[null,null,null,null,null,null,null,null,null,null,null,null,null,null,null,null,null,null,"Exportní garanční a pojišťovací společnost,a.s.","45279314","Vodičkova 701/34","Praha","11000","CZ","Vodičkova 701/34, 11000 Praha"]
[null,null,null,null,null,null,null,null,null,null,null,null,null,null,null,null,null,null,"Generali Pojišťovna a.s.","61859869","Bělehradská 299/132","Praha","12000","CZ","Bělehradská 299/132, 12000 Praha"]
[null,null,null,null,null,null,null,null,null,null,null,null,null,null,null,null,null,null,"HALALI, všeobecná pojišťovna,a.s.","60192402","Jungmannova 32/25","Praha","11000","CZ","Jungmannova 32/25, 11000 Praha"]
[null,null,null,null,null,null,null,null,null,null,null,null,null,null,null,null,null,null,"Hasičská vzájemná pojišťovna, a.s.","46973451","Římská 2135/45","Praha","12000","CZ","Římská 2135/45, 12000 Praha"]
[null,null,null,null,null,null,null,null,null,null,null,null,null,null,null,null,null,null,"HDI Versicherung AG, organizační složka","27636062","Jugoslávská 620/29","Praha","12000","CZ","Jugoslávská 620/29, 12000 Praha"]
[null,null,null,null,null,null,null,null,null,null,null,null,null,null,null,null,null,null,"ING pojišťovna, a.s.","25703838","Nádražní 344/25","Praha","15000","CZ","Nádražní 344/25, 15000 Praha"]
[null,null,null,null,null,null,null,null,null,null,null,null,null,null,null,null,null,null,"ING Životná poisťovňa, a.s., pobočka pro Českou republiku","27366421","Nádražní 344/25","Praha","15000","CZ","Nádražní 344/25, 15000 Praha"]
[null,null,null,null,null,null,null,null,null,null,null,null,null,null,null,null,null,null,"ING Životní pojišťovna N.V., pobočka pro Českou republiku","40763587","Nádražní 344/25","Praha","15000","CZ","Nádražní 344/25, 15000 Praha"]
[null,null,null,null,null,null,null,null,null,null,null,null,null,null,null,null,null,null,"INTER PARTNER ASSISTANCE, organizační složka","28225619","Hvězdova 1689/2a","Praha","14000","CZ","Hvězdova 1689/2a, 14000 Praha"]
[null,null,null,null,null,null,null,null,null,null,null,null,null,null,null,null,null,null,"Komerční pojišťovna, a.s.","63998017","Karolinská 650/1","Praha","18600","CZ","Karolinská 650/1, 18600 Praha"]
[null,null,null,null,null,null,null,null,null,null,null,null,null,null,null,null,null,null,"Kooperativa pojišťovna, a.s., Vienna Insurance Group","47116617","Pobřežní 665/21","Praha","18600","CZ","Pobřežní 665/21, 18600 Praha"]
[null,null,null,null,null,null,null,null,null,null,null,null,null,null,null,null,null,null,"KUPEG úvěrová pojišťovna, a.s.","27245322","Na Pankráci 1683/127","Praha","14000","CZ","Na Pankráci 1683/127, 14000 Praha"]
[null,null,null,null,null,null,null,null,null,null,null,null,null,null,null,null,null,null,"MAXIMA pojišťovna, a.s.","61328464","Italská 1583/24","Praha","12000","CZ","Italská 1583/24, 12000 Praha"]
[null,null,null,null,null,null,null,null,null,null,null,null,null,null,null,null,null,null,"MetLife pojišťovna a.s.","45794944","V celnici 1028/10","Praha","11000","CZ","V celnici 1028/10, 11000 Praha"]
[null,null,null,null,null,null,null,null,null,null,null,null,null,null,null,null,null,null,"NOVIS Poisťovňa a.s., odštěpný závod","03387623","Helénská 1799/4","Praha","12000","CZ","Helénská 1799/4, 12000 Praha"]
[null,null,null,null,null,null,null,null,null,null,null,null,null,null,null,null,null,null,"Österreichische Hagelversicherung - Versicherungsverein auf Gegenseitigkeit, Agra pojišťovna, organizační složka","27609871","Střešovická 748/48","Praha","16200","CZ","Střešovická 748/48, 16200 Praha"]
[null,null,null,null,null,null,null,null,null,null,null,null,null,null,null,null,null,null,"Pojišťovna České spořitelny, a.s., Vienna Insurance Group","47452820","náměstí Republiky 115","Pardubice","53002","CZ","náměstí Republiky 115, 53002 Pardubice"]
[null,null,null,null,null,null,null,null,null,null,null,null,null,null,null,null,null,null,"Pojišťovna VZP, a.s.","27116913","Ke Štvanici 656/3","Praha","18600","CZ","Ke Štvanici 656/3, 18600 Praha"]
[null,null,null,null,null,null,null,null,null,null,null,null,null,null,null,null,null,null,"QBE INSURANCE (EUROPE) LIMITED, organizační složka","28221516","Na Pankráci 1638/43","Praha","14000","CZ","Na Pankráci 1638/43, 14000 Praha"]
[null,null,null,null,null,null,null,null,null,null,null,null,null,null,null,null,null,null,"Servisní pojišťovna a.s.","25345150","třída Tomáše Bati 532","Zlín","76302","CZ","třída Tomáše Bati 532, 76302 Zlín"]
[null,null,null,null,null,null,null,null,null,null,null,null,null,null,null,null,null,null,"Slavia pojišťovna a.s.","60197501","Revoluční 655/1","Praha","11000","CZ","Revoluční 655/1, 11000 Praha"]
[null,null,null,null,null,null,null,null,null,null,null,null,null,null,null,null,null,null,"Stewart Title Limited, organizační složka","29028426","Bozděchova 1840/7","Praha","15000","CZ","Bozděchova 1840/7, 15000 Praha"]
[null,null,null,null,null,null,null,null,null,null,null,null,null,null,null,null,null,null,"Triglav pojišťovna, a.s.","25073958","Novobranská 544/1","Brno","60200","CZ","Novobranská 544/1, 60200 Brno"]
[null,null,null,null,null,null,null,null,null,null,null,null,null,null,null,null,null,null,"Union poisťovňa, a.s., pobočka pro Českou republiku","24263796","Španělská 770/2","Praha","12000","CZ","Španělská 770/2, 12000 Praha"]
[null,null,null,null,null,null,null,null,null,null,null,null,null,null,null,null,null,null,"UNIQA Pojišťovna, a.s.","49240480","Evropská 810/136","Praha","16000","CZ","Evropská 810/136, 16000 Praha"]
[null,null,null,null,null,null,null,null,null,null,null,null,null,null,null,null,null,null,"Vitalitas pojišťovna, a.s.","25710966","Tusarova 1152/36","Praha","17000","CZ","Tusarova 1152/36, 17000 Praha"]
[null,null,null,null,null,null,null,null,null,null,null,null,null,null,null,null,null,null,"Wüstenrot pojišťovna a.s.","28400682","Na hřebenech II 1718/8","Praha","14000","CZ","Na hřebenech II 1718/8, 14000 Praha"]
[null,null,null,null,null,null,null,null,null,null,null,null,null,null,null,null,null,null,"Wüstenrot, životní pojišťovna, a.s.","25720198","Na hřebenech II 1718/8","Praha","14000","CZ","Na hřebenech II 1718/8, 14000 Praha"]

{"sheet":"help","index":1,"n_rows":23,"n_cols":5,"rows_kept":23,"cut":false,"hidden":false,"merged":[]}
[null,"číslo této verze",4,null,{"$f":"IF(C23>C1,\"Na portále OVB je ke stažení novější verze !\",\"\")","v":""}]
[]
[]
["VŽDY MUSÍ BÝT SEŘAZENO!!!!","soubor","aktuální verze","adresa nové verze"]
[1,"hypotéky pro fyzické osoby",53,"https://www.ovbportal.cz/OvbPortal/Core/Lara_Handler_OvbPortal_DownloadFile.ashx?FileId=350efdd6-d013-4f16-8c7b-a0c0af7dab4a"]
[2,"pojištění osob",49,"https://www.ovbportal.cz/OvbPortal/Core/Lara_Handler_OvbPortal_DownloadFile.ashx?FileId=6150c5b6-1dd7-4fac-b3a3-3ad2002b5828"]
[3,"Vševěd 2003 Partneři - kontaktní osoby, produkty, informace",10,"https://www.ovbportal.cz/OvbPortal/Core/Lara_Handler_OvbPortal_DownloadFile.ashx?FileId=055416b5-24ad-40fc-83ba-5525ea3d94b7"]
[4,"penzijni spolecnosti",47,"https://www.ovbportal.cz/OvbPortal/Core/Lara_Handler_OvbPortal_DownloadFile.ashx?FileId=27d7172f-efd1-4364-a5cd-73f7eb4da33e"]
[5,"akce - stavební spořitelny",2]
[6,"stavební spoření",60,"https://www.ovbportal.cz/OvbPortal/Core/Lara_Handler_OvbPortal_DownloadFile.ashx?FileId=7805fb7d-1fc1-4577-bf10-900985f186c1"]
[7,"portalOVB",3]
[8,"statisticka data",4,"https://ovbportal.cz/cz.portal.web.staging/GetFile.aspx?id=143944"]
[9,"Pojištění úvěru (ztráta zaměstnání)",6,"https://www.ovbportal.cz/OvbPortal/Core/Lara_Handler_OvbPortal_DownloadFile.ashx?FileId=3883a582-8a65-457f-8bd7-3b76bd243139"]
[10,"investice",5,"https://www.ovbportal.cz/OvbPortal/Core/Lara_Handler_OvbPortal_DownloadFile.ashx?FileId=d0c277a0-2c6c-40ef-b453-6f8b485d2a79"]
[11,"vševěd",21,"https://www.ovbportal.cz/OvbPortal/Core/Lara_Handler_OvbPortal_DownloadFile.ashx?FileId=055416b5-24ad-40fc-83ba-5525ea3d94b7"]
[12,"pojištění vozidel",6,"https://www.ovbportal.cz/OvbPortal/Core/Lara_Handler_OvbPortal_DownloadFile.ashx?FileId=15cde22f-7d0a-4e25-8942-1d9a51e7701d"]
[15,"uvery pro BD, SVJ, obce",14,"https://www.ovbportal.cz/OvbPortal/Core/Lara_Handler_OvbPortal_DownloadFile.ashx?FileId=bec8dae4-b821-47ca-b30f-63a718bf2315"]
[14,"RFP",-50]
[15,"občanský majetek",4,"https://www.ovbportal.cz/OvbPortal/Core/Lara_Handler_OvbPortal_DownloadFile.ashx?FileId=b7f2a793-b53c-4b14-887f-b944483198f6"]
[16,"Duchodova kalkulacka",1]
[17,"Kalkulator_provizi",10,"https://www.ovbportal.cz/OvbPortal/Core/Lara_Handler_OvbPortal_DownloadFile.ashx?FileId=67c2e07b-ee8e-4892-9216-4cddad04a4fc"]
[18,"kalkulatory",1]
[19,"vypovedi",4,"https://www.ovbportal.cz/OvbPortal/Core/Lara_Handler_OvbPortal_DownloadFile.ashx?FileId=077dd0cb-8e8e-473a-8cb0-13d2f891acaa"]